{"text_format":"1","workbook":"xlsx","n_sheets":8,"sheets":["Overview","Select Data","Manual","Source Data","VBA","Change","Column","Column Switch"],"not_rendered":{"charts":8,"images":0,"macros":1,"external_links":0,"defined_names":0,"comments":0,"pivot_tables":0},"unopened":[],"bounds":{"document_bytes":16777216,"sheet_cells":100000,"rows_first":2000,"rows_last":500,"rows_between":2000,"halvings":0,"cell_chars":16384,"cell_head_chars":4096},"cells_cut":0,"cells_raw":0,"read":"whole","date_system":"1900"}

{"sheet":"Overview","index":0,"n_rows":10,"n_cols":5,"rows_kept":10,"cut":false,"hidden":false,"merged":[[1,1,1,4]]}
[]
[null,"How to Swap Axis in Excel"]
[]
[null,"Sales Rep","Product","Sales","Profit"]
[null,"Buffay","Mouse",200,{"$f":"D5*0.3","v":60}]
[null,"Lier","Desktop",110,{"$f":"D6*0.3","v":33}]
[null,"Adam","Laptop",350,105]
[null,"Rowan","Mobile",600,180]
[null,"Harwood","AC",550,165]
[null,"Morrison","Oven",300,90]

{"sheet":"Select Data","index":1,"n_rows":10,"n_cols":5,"rows_kept":10,"cut":false,"hidden":false,"merged":[[1,1,1,4]]}
[]
[null,"Applying Select Data Feature"]
[]
[null,"Sales Rep","Product","Sales","Profit"]
[null,"Buffay","Mouse",200,{"$f":"D5*0.3","v":60}]
[null,"Lier","Desktop",110,{"$f":"D6*0.3","v":33}]
[null,"Adam","Laptop",350,105]
[null,"Rowan","Mobile",600,180]
[null,"Harwood","AC",550,165]
[null,"Morrison","Oven",300,90]

{"sheet":"Manual","index":2,"n_rows":10,"n_cols":5,"rows_kept":10,"cut":false,"hidden":false,"merged":[[1,1,1,4]]}
[]
[null,"Manually Swap Data Series"]
[]
[null,"Sales Rep","Product","Profit","Sales"]
[null,"Buffay","Mouse",{"$f":"E5*0.3","v":60},200]
[null,"Lier","Desktop",33,110]
[null,"Adam","Laptop",105,350]
[null,"Rowan","Mobile",180,600]
[null,"Harwood","AC",165,550]
[null,"Morrison","Oven",90,300]

{"sheet":"Source Data","index":3,"n_rows":10,"n_cols":5,"rows_kept":10,"cut":false,"hidden":false,"merged":[[1,1,1,4]]}
[]
[null,"Source Data Series"]
[]
[null,"Sales Rep","Product","Sales","Profit"]
[null,"Buffay","Mouse",200,{"$f":"D5*0.3","v":60}]
[null,"Lier","Desktop",110,{"$f":"D6*0.3","v":33}]
[null,"Adam","Laptop",350,105]
[null,"Rowan","Mobile",600,180]
[null,"Harwood","AC",550,165]
[null,"Morrison","Oven",300,90]

{"sheet":"VBA","index":4,"n_rows":10,"n_cols":5,"rows_kept":10,"cut":false,"hidden":false,"merged":[[1,1,1,4]]}
[]
[null,"Run an Excel VBA Code"]
[]
[null,"Sales Rep","Product","Sales","Profit"]
[null,"Buffay","Mouse",200,{"$f":"D5*0.3","v":60}]
[null,"Lier","Desktop",110,{"$f":"D6*0.3","v":33}]
[null,"Adam","Laptop",350,105]
[null,"Rowan","Mobile",600,180]
[null,"Harwood","AC",550,165]
[null,"Morrison","Oven",300,90]

{"sheet":"Change","index":5,"n_rows":10,"n_cols":5,"rows_kept":10,"cut":false,"hidden":false,"merged":[[1,1,1,4]]}
[]
[null,"Changing Axis Value"]
[]
[null,"Sales Rep","Product","Sales","Profit"]
[null,"Buffay","Mouse",200,{"$f":"D5*0.3","v":60}]
[null,"Lier","Desktop",110,{"$f":"D6*0.3","v":33}]
[null,"Adam","Laptop",350,105]
[null,"Rowan","Mobile",600,180]
[null,"Harwood","AC",550,165]
[null,"Morrison","Oven",300,90]

{"sheet":"Column","index":6,"n_rows":10,"n_cols":5,"rows_kept":10,"cut":false,"hidden":false,"merged":[[1,1,1,4]]}
[]
[null,"Adding Axis Label"]
[]
[null,"Sales Rep","Product","Sales","Profit"]
[null,"Buffay","Mouse",200,{"$f":"D5*0.3","v":60}]
[null,"Lier","Desktop",110,{"$f":"D6*0.3","v":33}]
[null,"Adam","Laptop",350,105]
[null,"Rowan","Mobile",600,180]
[null,"Harwood","AC",550,165]
[null,"Morrison","Oven",300,90]

{"sheet":"Column Switch","index":7,"n_rows":10,"n_cols":5,"rows_kept":10,"cut":false,"hidden":false,"merged":[[1,1,1,4]]}
[]
[null,"Switching Rows or Columns"]
[]
[null,"Sales Rep","Product","Sales","Profit"]
[null,"Buffay","Mouse",200,{"$f":"D5*0.3","v":60}]
[null,"Lier","Desktop",110,{"$f":"D6*0.3","v":33}]
[null,"Adam","Laptop",350,105]
[null,"Rowan","Mobile",600,180]
[null,"Harwood","AC",550,165]
[null,"Morrison","Oven",300,90]